bitfinex-derivatives/quotes_ETHF0:USTF0_20250403
["timestamp","ask_amount","ask_price","bid_price","bid_amount"]
[1743650435077,3.651,1826.9,1826.8,0.87591]
[1743650435270,3.651,1826.9,1826.8,2.25461]
[1743650435666,6.1159,1827.1,1827.0,0.87582]
[1743650435875,8.3439,1827.1,1827.0,0.87582]
[1743650436081,8.3439,1827.1,1826.9,2.25453]
[1743650436374,8.3429,1827.1,1826.9,2.25453]
[1743650437078,8.3429,1827.1,1827.0,0.87582]
[1743650439673,8.3429,1827.1,1826.9,2.25454]
[1743650440678,8.3429,1827.1,1827.0,0.87582]
[1743650441079,8.3429,1827.1,1826.9,2.25453]
[1743650441280,1.4921,1827.1,1827.0,0.87582]
[1743650441482,3.64222571,1827.2,1827.1,0.87577]
[1743650441875,3.64222571,1827.2,1827.0,0.87578]
[1743650442081,3.2078,1827.1,1826.9,0.87587]
[1743650442475,0.7041,1827.0,1826.9,0.87587]
[1743650443279,0.7041,1827.0,1826.9,2.38357]
[1743650443484,3.64222571,1827.2,1827.1,0.87577]
[1743650443673,4.34632571,1827.2,1827.1,0.87577]
[1743650443874,4.34632571,1827.2,1827.0,2.38348]
[1743650444072,3.21602571,1827.2,1827.1,0.87577]
[1743650444275,3.21602571,1827.2,1827.1,3.83197]
[1743650445684,0.00822571,1827.2,1827.1,7.03977]
[1743650452878,3.948,1827.8,1827.7,0.87548]
[1743650453188,3.624,1828.0,1827.5,2.18885]
[1743650453377,6.8318,1828.1,1827.9,0.87535]
[1743650453582,1.487,1828.0,1827.9,0.87535]
[1743650455287,2.9965,1828.0,1827.9,0.87535]
[1743650457084,2.9965,1828.0,1827.8,0.00822571]
[1743650457286,5.59269,1827.9,1827.8,0.00822571]
[1743650457487,4.7173,1827.9,1827.8,0.00822571]
[1743650457685,5.59269,1827.9,1827.8,0.00822571]
[1743650458283,7.2173,1827.9,1827.2,3.2078]
[1743650458482,4.08335,1827.6,1827.3,0.87563]
[1743650458686,6.4747,1827.5,1827.4,0.87563]
[1743650473691,6.4747,1827.5,1827.3,0.00822571]
[1743650474000,6.4747,1827.5,1826.6,2.18995]
[1743650474001,0.87574,1827.2,1827.0,0.8758]
[1743650474200,6.5985,1827.1,1827.0,0.8758]
[1743650475794,6.5985,1827.1,1827.0,1.5883]
[1743650475994,0.7602,1827.3,1827.2,0.87572]
[1743650476201,4.3762,1827.3,1827.2,0.87572]
[1743650476595,5.8654,1827.3,1827.2,2.37752]
[1743650476996,5.8654,1827.3,1827.1,0.7166]
[1743650477298,1.4892,1827.2,1827.1,1.59237]
[1743650478496,1.4892,1827.2,1827.0,0.87579]
[1743650478697,0.7404,1827.1,1827.0,0.87579]
[1743650480789,1.4892,1827.2,1827.1,0.87577]
[1743650481000,5.0951,1827.3,1827.2,0.87572]
[1743650481395,6.5103,1827.3,1827.2,0.87572]
[1743650481796,6.5103,1827.3,1827.0,0.87582]
[1743650482099,5.49875,1827.2,1826.9,0.88405571]
[1743650482300,1.4891,1827.1,1826.9,0.88405571]
[1743650482500,3.616,1827.0,1826.9,0.88405571]
[1743650482802,4.3206,1827.0,1826.9,0.88405571]
[1743650483302,5.8097,1827.0,1826.9,0.88405571]
[1743650483798,5.8097,1827.0,1826.8,1.0]
[1743650483799,0.87587,1826.9,1826.8,1.0]
[1743650483998,3.06027,1826.9,1826.8,1.0]
[1743650484695,3.06027,1826.9,1826.8,1.87591]
[1743650484696,1.4891,1826.9,1826.8,1.87591]
[1743650485505,1.4891,1826.9,1826.8,3.35111]
[1743650488014,1.4891,1826.9,1826.8,2.4752]
[1743650488899,1.4891,1826.9,1826.8,3.35111]
[1743650489313,1.4891,1826.9,1826.8,2.4752]
[1743650490704,3.2078,1827.0,1826.9,0.87587]
[1743650490900,3.2078,1827.0,1826.9,2.95517]
[1743650491901,3.617,1827.2,1827.1,0.87577]
[1743650492501,3.617,1827.2,1827.0,1.63197]
[1743650492699,3.617,1827.2,1827.0,2.162]
[1743650492908,3.617,1827.2,1827.1,0.87577]
[1743650493111,3.617,1827.2,1827.1,2.28157]
[1743650493711,5.1142,1827.2,1827.1,2.28157]
[1743650496110,9.19773,1827.2,1826.9,1.56343]
[1743650496313,2.8963,1827.1,1827.0,0.87582]
[1743650496814,6.8248,1827.2,1827.1,0.87577]
[1743650497015,6.8248,1827.2,1827.1,1.60717]
[1743650497516,8.3371,1827.2,1827.1,1.60717]
[1743650497816,8.3371,1827.2,1827.1,0.7314]
[1743650498308,8.3371,1827.2,1827.1,2.1168]
[1743650499120,9.21282,1827.2,1827.1,2.1168]
[1743650499321,9.21282,1827.2,1827.0,0.87579]
[1743650499519,1.5123,1827.1,1827.0,2.26119]
[1743650499722,1.5123,1827.1,1827.0,0.87579]
[1743650501114,1.5123,1827.1,1827.0,2.25639]
[1743650503418,3.2078,1827.2,1827.1,0.87577]
[1743650503616,3.2078,1827.2,1827.1,2.29137]
[1743650503814,9.644,1827.5,1827.4,0.87563]
[1743650505222,4.5959,1827.5,1827.4,0.87563]
[1743650505415,0.00822571,1827.6,1827.5,0.87558]
[1743650505619,3.2078,1828.2,1827.5,0.6905]
[1743650505916,3.616,1828.1,1828.0,0.87532]
[1743650506225,5.0041,1828.1,1827.9,0.87535]
[1743650506709,1.4321,1828.0,1827.9,0.87535]
[1743650507319,1.4321,1828.0,1827.9,2.37235]
[1743650507715,4.6399,1828.0,1827.8,0.00822571]
[1743650507915,0.6877,1827.9,1827.8,0.88365571]
[1743650508110,2.1198,1827.9,1827.8,0.88365571]
[1743650508823,3.616,1828.1,1828.0,0.87534]
[1743650509121,5.0481,1828.1,1828.0,0.87534]
[1743650509623,5.0481,1828.1,1828.0,2.26194]
[1743650511618,3.91632571,1828.2,1828.1,0.87529]
[1743650511919,4.32452571,1828.2,1828.1,2.26189]
[1743650512522,0.70852571,1828.2,1828.1,2.26189]
[1743650512722,4.32452571,1828.2,1828.1,2.26189]
[1743650512915,3.62422571,1828.2,1828.1,2.26189]
[1743650513317,0.00822571,1828.2,1828.1,2.26189]
[1743650514613,0.00822571,1828.2,1828.0,0.87531]
[1743650514925,3.21602571,1828.2,1828.0,0.87531]
[1743650515123,3.21602571,1828.2,1828.0,2.31451]
[1743650515124,1.401,1828.1,1828.0,2.31451]
[1743650517320,0.00822571,1828.2,1828.1,0.87529]
[1743650524018,0.00822571,1828.2,1828.1,2.37169]
[1743650527826,0.00822571,1828.2,1828.1,5.57949]
[1743650531238,0.00822571,1828.2,1828.1,2.37169]
[1743650531536,0.00822571,1828.2,1828.1,5.57949]
[1743650532234,0.7109,1828.7,1828.1,5.57949]
[1743650532235,0.7109,1828.7,1828.6,0.87505]
[1743650533125,2.2106,1828.8,1828.7,0.875]
[1743650534033,0.00814924,1828.9,1828.8,0.87496]
[1743650534532,9.24e-06,1828.9,1828.8,4.08276]
[1743650534838,5.7659,1829.5,1829.4,0.87467]
[1743650536125,2.1519,1829.5,1829.4,0.87467]
[1743650536630,2.1519,1829.5,1829.4,2.34447]
[1743650537031,1.4369,1829.5,1829.4,2.34447]
[1743650537638,0.7302,1829.6,1829.5,0.87462]
[1743650537837,0.7302,1829.6,1829.5,2.26482]
[1743650538037,2.1779,1829.6,1829.5,2.26482]
[1743650539735,2.1779,1829.6,1829.4,0.87465]
[1743650539935,2.1407,1829.5,1829.3,0.00820277]
[1743650540134,1.4204,1829.4,1829.3,0.00820277]
[1743650540936,4.6282,1829.4,1829.3,0.88292277]
[1743650541144,1.4204,1829.4,1829.3,0.88292277]
[1743650546631,0.693,1829.5,1829.4,0.87467]
[1743650546837,0.7302,1829.6,1829.5,0.87462]
[1743650547143,2.1668,1829.6,1829.5,0.87462]
[1743650550147,5.3746,1829.6,1829.4,0.87464]
[1743650550338,1.4346,1829.5,1829.4,0.87467]
[1743650553350,5.0456,1829.5,1829.3,0.00820277]
[1743650553645,4.78857,1829.4,1829.3,0.00820277]
[1743650553948,2.2117,1829.4,1829.3,0.88292277]
[1743650555352,5.4195,1829.4,1829.3,0.00820277]
[1743650556149,5.4195,1829.4,1829.3,0.88292277]
[1743650556548,5.4195,1829.4,1829.3,0.00820277]
[1743650556738,5.4195,1829.4,1829.3,0.88292277]
[1743650558951,4.7134,1829.4,1829.3,0.88292277]
[1743650559453,4.7134,1829.4,1829.3,2.32152277]
[1743650559649,3.2078,1829.4,1829.3,2.32152277]
[1743650561159,3.611,1829.7,1829.6,0.87457]
[1743650561360,5.8791,1829.7,1829.6,0.87457]
[1743650564755,2.2681,1829.7,1829.6,0.87457]
[1743650564958,2.2681,1829.7,1829.6,1.58697]
[1743650565957,2.2681,1829.7,1829.5,2.28499]
[1743650566158,5.4606,1829.6,1829.4,1.56855]
[1743650566360,1.5207,1829.5,1829.4,1.56855]
[1743650568269,0.7321,1829.6,1829.5,0.87462]
[1743650568466,0.7321,1829.6,1829.5,2.97742]
[1743650568867,2.245,1829.6,1829.5,2.97742]
[1743650570470,2.245,1829.6,1829.5,0.87462]
[1743650570668,2.245,1829.6,1829.3,0.00820277]
[1743650570669,5.4528,1829.6,1829.3,0.00820277]
[1743650570967,4.08247,1829.4,1829.3,0.00820277]
[1743650571466,6.28407,1829.4,1829.3,0.00820277]
[1743650577771,7.9094,1829.4,1828.9,0.8749]
[1743650577972,1.4604,1829.3,1828.9,0.8749]
[1743650578174,4.3468,1829.2,1828.9,0.8749]
[1743650578362,1.4604,1829.1,1829.0,0.87486]
[1743650579165,2.1919,1829.1,1829.0,0.87486]
[1743650579871,5.8029,1829.1,1829.0,0.87486]
[1743650580373,5.8029,1829.1,1828.9,2.29818277]
[1743650580869,5.56396,1829.0,1828.9,0.00820277]
[1743650581264,8.06396,1829.0,1828.9,0.00820277]
[1743650584271,8.16032683,1829.0,1828.9,0.00820277]
[1743650584474,8.06396,1829.0,1828.9,0.00820277]
[1743650585771,8.06396,1829.0,1828.9,2.77e-06]
[1743650586472,14.02796,1829.0,1828.9,2.77e-06]
[1743650586877,17.64296,1829.0,1828.9,2.77e-06]
[1743650592984,0.87519,1828.3,1828.2,0.7206]
[1743650593187,7.69899,1828.3,1828.2,0.7206]
[1743650597089,0.87516,1828.4,1828.2,0.7206]
[1743650597282,4.08293,1828.5,1828.3,2.25529]
[1743650597475,3.2078,1828.5,1828.4,2.0761]
[1743650597683,6.8238,1828.5,1828.4,2.95125]
[1743650597987,6.8238,1828.5,1828.4,2.0761]
[1743650598285,7.6989,1828.5,1828.4,2.0761]
[1743650601286,3.2078,1828.7,1828.4,2.0761]
[1743650601488,3.613,1828.6,1828.5,2.2092]
[1743650601990,4.48805,1828.6,1828.5,2.2092]
[1743650605983,1.5036,1828.8,1828.6,0.87505]
[1743650605984,3.613,1828.8,1828.6,0.87505]
[1743650606182,3.613,1828.8,1828.7,1.4716]
[1743650608785,3.615,1828.8,1828.7,2.3466]
[1743650608989,3.615,1828.8,1828.7,1.4716]
[1743650609193,3.615,1828.8,1828.7,2.3466]
[1743650609491,3.2078,1828.9,1828.8,0.87496]
[1743650609684,3.2078,1828.9,1828.8,3.77126]
[1743650609884,0.00820277,1829.2,1828.8,5.3963]
[1743650610084,0.00820277,1829.2,1829.1,0.87481]
[1743650614088,0.00820277,1829.2,1829.0,1.433]
[1743650614089,0.88298277,1829.2,1829.0,1.433]
[1743650614288,0.87481,1829.1,1829.0,1.433]
[1743650614491,2.27070277,1829.2,1829.0,1.433]
[1743650614689,0.87481,1829.1,1829.0,1.433]
[1743650615085,2.27070277,1829.2,1829.0,1.433]
[1743650615790,3.2078,1829.1,1829.0,1.433]
[1743650615996,4.08261,1829.1,1829.0,1.433]
[1743650616288,6.8198,1829.1,1829.0,1.433]
[1743650617504,6.8198,1829.1,1828.8,1.4737]
[1743650617505,0.87491,1828.9,1828.8,1.4737]
[1743650617688,4.08271,1828.9,1828.8,1.4737]
[1743650617996,3.2078,1828.9,1828.8,1.4737]
[1743650618685,3.2078,1828.9,1828.8,2.9791]
[1743650619992,4.6147,1828.9,1828.8,2.9791]
[1743650620395,1.4069,1828.9,1828.8,2.9791]
[1743650621688,2.28181,1828.9,1828.8,2.9791]
[1743650621892,1.4069,1828.9,1828.4,0.87512]
[1743650622087,0.87502,1828.7,1828.4,3.74612]
[1743650622293,0.87502,1828.7,1828.5,1.4774]
[1743650622493,1.419,1828.7,1828.5,2.35249]
[1743650622686,1.419,1828.7,1828.6,0.87505]
[1743650622885,1.419,1828.7,1828.6,2.35245]
[1743650623194,6.8198,1828.8,1828.6,2.35245]
[1743650623388,8.2388,1828.8,1828.7,1.4774]
[1743650623597,9.11376,1828.8,1828.7,1.4774]
[1743650624997,0.87502,1828.7,1828.4,1.481]
[1743650625200,3.76592,1828.7,1828.4,2.9584]
[1743650625701,1.3808,1828.6,1828.4,2.9584]
[1743650627293,1.3808,1828.6,1828.4,3.83354]
[1743650627612,1.3808,1828.6,1828.5,1.4701]
[1743650629298,6.8198,1828.8,1828.6,0.87504]
[1743650629599,3.2078,1828.8,1828.7,2.29]
[1743650629993,3.2078,1828.8,1828.7,0.875]
[1743650630201,4.6231,1828.8,1828.4,2.896]
[1743650630602,3.2078,1828.8,1828.7,0.875]
[1743650631196,3.2078,1828.8,1828.5,1.415]
[1743650631197,0.7122,1829.1,1828.5,4.6228]
[1743650631501,3.21600277,1829.2,1828.5,4.6228]
[1743650631502,3.62220277,1829.2,1829.0,0.87485]
[1743650631700,0.00820277,1829.2,1829.1,2.28111]
[1743650640013,0.00820277,1829.2,1829.1,1.4063]
[1743650640203,0.00820277,1829.2,1829.0,0.87483]
[1743650640505,0.72290277,1829.2,1829.1,0.87481]
[1743650640708,0.72290277,1829.2,1829.0,2.2417]
[1743650640910,0.72290277,1829.2,1829.1,2.36461]
[1743650641112,4.80549277,1829.2,1828.8,5.824]
[1743650641312,5.0652,1829.1,1828.8,0.87491]
[1743650641513,1.4532,1829.0,1828.8,2.36471]
[1743650641710,1.4532,1829.0,1828.9,0.87491]
[1743650641910,3.612,1829.1,1829.0,0.87486]
[1743650642305,3.612,1829.1,1829.0,1.59446]
[1743650643420,5.0652,1829.1,1829.0,1.59446]
[1743650643913,5.94001,1829.1,1828.8,0.87492]
[1743650644211,2.2162,1829.0,1828.8,2.25682]
[1743650644512,1.4834,1828.9,1828.8,2.25682]
[1743650644906,3.612,1829.1,1829.0,0.87486]
[1743650645108,5.0954,1829.1,1829.0,0.87486]
[1743650645610,4.80549277,1829.2,1829.1,0.87481]
[1743650645611,0.00820277,1829.2,1829.1,0.87481]
[1743650646108,0.00820277,1829.2,1829.1,1.63131]
[1743650648021,3.2078,1829.4,1829.3,0.87472]
[1743650648609,3.2078,1829.4,1829.3,2.29222]
[1743650648813,3.2078,1829.4,1829.2,0.6975]
[1743650649010,6.67163,1829.3,1829.1,2.174]
[1743650649322,1.4916,1829.2,1829.1,2.18220277]
[1743650649518,5.57416,1829.2,1829.1,0.00820277]
[1743650654309,8.3114,1829.2,1829.1,0.00820277]
[1743650654812,9.18616,1829.2,1829.1,0.00820277]
[1743650655220,1.4916,1829.2,1829.1,0.00820277]
[1743650655517,5.1036,1829.2,1829.1,0.88301277]
[1743650657421,3.612,1829.2,1829.1,0.88301277]
[1743650658320,5.8024,1829.4,1829.3,0.87472]
[1743650658517,0.00820277,1829.5,1829.3,0.87472]
[1743650658723,3.62020277,1829.5,1829.3,2.35522]
[1743650659015,5.99385277,1829.5,1829.3,1.4805]
[1743650659217,1.499,1829.4,1829.3,1.4805]
[1743650659812,1.499,1829.4,1829.3,2.35522]
[1743650660722,1.499,1829.4,1829.3,0.87472]
[1743650660923,1.499,1829.4,1829.1,0.00820277]
[1743650661223,0.87473,1829.3,1829.1,0.00820277]
[1743650661524,1.499,1829.4,1829.1,0.88301277]
[1743650661525,1.499,1829.2,1829.1,0.88301277]
[1743650661725,2.2002,1829.2,1829.1,0.88301277]
[1743650663319,5.8112,1829.2,1829.1,0.88301277]
[1743650664828,5.8112,1829.2,1829.1,2.36811277]
[1743650666323,5.8112,1829.2,1829.1,1.49330277]
[1743650666625,0.87484,1829.1,1828.8,0.87494]
[1743650666923,4.7206,1829.0,1828.8,0.87494]
[1743650667128,1.5128,1828.9,1828.8,0.87494]
[1743650667925,1.5128,1828.9,1828.7,0.88318277]
[1743650668125,1.5128,1828.9,1828.7,0.00820277]
[1743650668126,6.73402,1828.9,1828.7,0.00820277]
[1743650668632,1.5124,1828.8,1828.7,0.00820277]
[1743650669338,2.38736,1828.8,1828.7,0.00820277]
[1743650669829,5.59516,1828.8,1828.7,0.00820277]
[1743650673224,8.09516,1828.8,1828.7,0.00820277]
[1743650674226,5.59516,1828.8,1828.7,0.00820277]
[1743650676537,4.7202,1828.8,1828.7,0.88320277]
[1743650676834,3.2078,1828.8,1828.7,0.88320277]
[1743650677236,3.2078,1828.8,1828.7,2.30910277]
[1743650678334,3.612,1829.0,1828.8,0.87494]
[1743650678632,3.612,1829.0,1828.9,1.4259]
[1743650681227,5.0584,1829.0,1828.9,1.4259]
[1743650682832,5.0584,1829.0,1828.7,0.00820277]
[1743650683024,5.4651,1828.9,1828.7,0.00820277]
[1743650683337,1.5218,1828.8,1828.7,1.38390277]
[1743650683736,1.5218,1828.8,1828.7,2.25890277]
[1743650683939,3.612,1829.0,1828.8,0.87496]
[1743650684135,3.612,1829.0,1828.8,2.25066]
[1743650684631,5.1338,1829.0,1828.9,1.3757]
[1743650685237,6.00866,1829.0,1828.9,1.3757]
[1743650686334,0.87494,1828.9,1828.7,0.00820277]
[1743650686535,6.18234,1828.9,1828.7,1.42030277]
[1743650687239,1.3868,1828.8,1828.7,1.42030277]
[1743650687938,0.7128,1828.9,1828.7,1.42030277]
[1743650688236,3.612,1829.0,1828.8,0.87494]
[1743650688431,3.2078,1828.9,1828.7,0.88318277]
[1743650688635,6.8198,1829.1,1828.9,0.87491]
[1743650688831,3.2078,1829.1,1829.0,3.72016]
[1743650689437,4.08261,1829.1,1829.0,2.8453]
[1743650689633,0.87487,1829.0,1828.7,0.88317277]
[1743650689834,3.06797,1829.0,1828.7,3.70907277]
[1743650690039,2.9078,1829.0,1828.7,3.70907277]
[1743650690242,3.78269,1829.0,1828.8,1.3902]
[1743650691343,6.99049,1829.0,1828.8,1.3902]
[1743650692036,0.87491,1828.9,1828.8,1.3902]
[1743650692238,2.35291,1828.9,1828.8,1.3902]
[1743650694036,5.96491,1828.9,1828.8,1.3902]
[1743650699534,0.87496,1828.8,1828.7,1.44390277]
[1743650699737,5.52586,1828.8,1828.7,1.44390277]
[1743650700236,5.52586,1828.8,1828.7,0.00820277]
[1743650700739,4.6509,1828.8,1828.7,0.00820277]
[1743650700942,4.6165,1829.0,1828.7,0.88316277]
[1743650701237,4.6165,1829.0,1828.8,2.8883]
[1743650701443,7.69466,1829.0,1828.9,1.5229]
[1743650701638,7.69466,1829.0,1828.8,1.4767]
[1743650701639,0.87491,1828.9,1828.8,0.7448]
[1743650701842,1.4291,1828.9,1828.8,2.2677]
[1743650702639,7.69469,1829.0,1828.8,2.2677]
[1743650702839,7.69469,1829.0,1828.9,2.2548]
[1743650704341,7.69469,1829.0,1828.7,0.88320277]
[1743650704342,6.8198,1829.0,1828.7,0.00820277]
[1743650704651,4.08276,1828.8,1828.7,0.00820277]
[1743650705050,5.52056,1828.8,1828.7,0.00820277]
[1743650705250,4.6456,1828.8,1828.7,0.00820277]
[1743650705448,1.4378,1828.8,1828.7,0.00820277]
[1743650705643,1.4378,1828.8,1828.7,2.19300277]
[1743650706251,2.31276,1828.8,1828.7,2.19300277]
[1743650706547,5.52056,1828.8,1828.7,0.00820277]
[1743650712655,8.11693424,1828.8,1828.7,2.77e-06]
[1743650713853,8.11693843,1828.8,1828.7,2.77e-06]
[1743650715955,9.13256,1828.8,1828.7,2.77e-06]
[1743650732465,5.92476,1828.8,1828.7,2.77e-06]
[1743650732659,9.13256,1828.8,1828.7,2.77e-06]
[1743650746092,11.72892097,1828.8,1828.7,2.77e-06]
[1743650749091,5.61694472,1828.8,1828.7,2.77e-06]
[1743650749394,9.22894472,1828.8,1828.7,2.77e-06]
[1743650750694,9.22893766,1828.8,1828.7,2.77e-06]
[1743650753788,9.13256,1828.8,1828.7,2.77e-06]
[1743650753993,9.22894361,1828.8,1828.7,2.77e-06]
[1743650755393,9.22894058,1828.8,1828.7,2.77e-06]
[1743650756994,9.22894869,1828.8,1828.7,2.77e-06]
[1743650761397,9.22894366,1828.8,1828.7,2.77e-06]
[1743650762892,9.22894262,1828.8,1828.7,2.77e-06]
[1743650766001,9.22893898,1828.8,1828.7,2.77e-06]
[1743650770501,9.22893898,1828.8,1828.7,1.46690277]
[1743650771598,4.17913898,1828.8,1828.7,1.46690277]
[1743650771799,6.8198,1828.8,1828.7,4.84190277]
[1743650772103,3.612,1828.8,1828.7,4.84190277]
[1743650772597,3.612,1828.8,1828.7,3.96690277]
[1743650772801,3.612,1828.8,1828.7,4.84190277]
[1743650772995,3.612,1828.8,1828.7,3.96690277]
[1743650773499,3.612,1828.8,1828.7,4.84190277]
[1743650773896,3.612,1828.8,1828.7,3.96690277]
[1743650774904,3.612,1828.8,1828.7,4.84190277]
[1743650775409,3.612,1828.8,1828.7,3.96690277]
[1743650775703,3.612,1828.8,1828.7,4.84190277]
[1743650776198,6.8188,1829.0,1828.7,4.84190277]
[1743650776399,6.8188,1829.0,1828.8,2.1495]
[1743650776603,7.69366,1829.0,1828.9,1.4549]
[1743650776801,7.69366,1829.0,1828.9,2.1881]
[1743650777105,6.8188,1829.0,1828.9,2.1881]
[1743650778005,7.69366,1829.0,1828.9,2.1881]
[1743650778205,6.8188,1829.0,1828.9,2.1881]
[1743650780304,3.611,1829.0,1828.9,2.1881]
[1743650782409,4.48586,1829.0,1828.9,2.1881]
[1743650784705,0.87491,1828.9,1828.8,0.6946]
[1743650784898,6.30441,1828.9,1828.8,0.6946]
[1743650786109,3.2078,1828.9,1828.8,0.6946]
[1743650786410,3.611,1829.0,1828.8,1.56955]
[1743650786612,3.611,1829.0,1828.9,1.4871]
[1743650786804,3.611,1829.0,1828.9,2.2074]
[1743650787313,4.48586,1829.0,1828.9,2.2074]
[1743650787512,7.35496,1829.0,1828.9,2.2074]
[1743650788512,0.87491,1828.9,1828.8,0.6946]
[1743650788704,5.51061,1828.9,1828.8,0.6946]
[1743650788909,0.87496,1828.8,1828.7,2.77e-06]
[1743650789108,2.30286,1828.8,1828.7,2.77e-06]
[1743650789711,1.4279,1828.8,1828.7,2.77e-06]
[1743650790017,2.30286,1828.8,1828.7,2.77e-06]
[1743650793812,5.51066,1828.8,1828.7,2.77e-06]
[1743650798019,5.60703815,1828.8,1828.7,2.77e-06]
[1743650798612,5.60704896,1828.8,1828.7,2.77e-06]
[1743650799014,8.10704896,1828.8,1828.7,2.77e-06]
[1743650799214,5.60705895,1828.8,1828.7,2.77e-06]
[1743650800221,5.60704789,1828.8,1828.7,2.77e-06]
[1743650800926,9.21704789,1828.8,1828.7,2.77e-06]
[1743650801113,9.12066,1828.8,1828.7,2.77e-06]
[1743650801319,9.21704288,1828.8,1828.7,2.77e-06]
[1743650801718,9.21703906,1828.8,1828.7,0.07475997]
[1743650809621,9.21704389,1828.8,1828.7,0.07475997]
[1743650812216,9.21704654,1828.8,1828.7,0.07475997]
[1743650817429,9.21704909,1828.8,1828.7,0.07475997]
[1743650818430,0.87515,1828.4,1828.3,1.4859]
[1743650818633,7.69295,1828.4,1828.3,1.4859]
[1743650820128,9.09805,1828.4,1828.3,1.4859]
[1743650820329,9.80725,1828.4,1828.3,1.4859]
[1743650820530,7.69295,1828.4,1828.3,1.4859]
[1743650828737,8.42705,1828.4,1828.3,1.4859]
[1743650829229,8.42705,1828.4,1828.2,0.69490277]
[1743650829230,0.87519,1828.3,1828.2,0.00820277]
[1743650829434,3.08899278,1828.3,1828.2,0.00820277]
[1743650831137,3.08899952,1828.3,1828.2,0.00820277]
[1743650831332,3.08899952,1828.3,1827.8,1.4771]
[1743650831333,0.87539,1827.9,1827.8,1.4771]
[1743650831540,0.87558,1827.5,1827.4,1.5092]
[1743650831835,7.69338,1827.5,1827.4,1.5092]
[1743650833031,7.69338,1827.5,1827.4,2.9795]
[1743650838132,8.43638,1827.5,1827.4,2.9795]
[1743650838939,8.86294763,1827.5,1827.4,2.9795]
[1743650839437,8.86294763,1827.5,1827.3,0.00820277]
[1743650839438,0.87563,1827.4,1827.3,0.00820277]
[1743650839643,3.06633,1827.4,1827.3,0.00820277]
[1743650839943,3.16276082,1827.4,1827.3,0.00820277]
[1743650840546,3.16276102,1827.4,1827.3,0.00820277]
[1743650840730,2.45216102,1827.4,1827.3,0.00820277]
[1743650840933,2.35573,1827.4,1827.3,0.00820277]
[1743650841143,0.87563,1827.4,1827.3,0.00820277]
[1743650842340,2.37043,1827.4,1827.3,0.00820277]
[1743650846336,5.57823,1827.4,1827.3,0.00820277]
[1743650847349,5.67462633,1827.4,1827.3,0.00820277]
[1743650847948,7.69443,1827.4,1827.3,0.00820277]
[1743650848149,3.2078,1827.4,1827.3,0.00820277]
[1743650848451,0.87561,1827.5,1827.3,0.00820277]
[1743650848452,3.611,1827.5,1827.3,2.50820277]
[1743650848639,3.611,1827.5,1827.4,1.3899]
[1743650848953,3.611,1827.5,1827.4,5.2826]
[1743650849446,4.48658,1827.5,1827.4,5.2826]
[1743650850146,3.611,1827.5,1827.4,5.2826]
[1743650850951,4.48658,1827.5,1827.4,5.2826]
[1743650851360,4.48658,1827.5,1827.4,2.7826]
[1743650852954,3.611,1827.5,1827.4,2.7826]
[1743650853161,0.00820277,1827.6,1827.4,6.15819]
[1743650853365,0.00820277,1827.6,1827.5,1.398]
[1743650853859,0.00820277,1827.6,1827.5,3.898]
[1743650856561,0.00820277,1827.6,1827.5,4.77358]
[1743650856749,0.00820277,1827.6,1827.5,3.898]
[1743650857861,0.00820277,1827.6,1827.5,4.77358]
[1743650858060,0.00820277,1827.6,1827.5,3.898]
[1743650859163,0.88373277,1827.6,1827.5,3.898]
[1743650859762,0.88373277,1827.6,1827.5,1.398]
[1743650860352,0.00820277,1827.6,1827.5,1.398]
[1743650860860,0.88373277,1827.6,1827.5,1.398]
[1743650862260,2.26343277,1827.6,1827.5,1.398]
[1743650865363,0.00820277,1827.6,1827.5,2.27358]
[1743650865566,0.00820277,1827.6,1827.5,4.77358]
[1743650865766,3.2078,1827.9,1827.5,3.898]
[1743650865970,6.8178,1827.9,1827.6,2.28801]
[1743650866170,7.6932,1827.9,1827.7,2.1041]
[1743650866365,7.6932,1827.9,1827.8,2.1176]
[1743650869570,4.4854,1827.9,1827.8,2.1176]
[1743650869770,7.6932,1827.9,1827.8,2.1176]
[1743650871969,9.1158,1827.9,1827.8,2.1176]
[1743650872164,6.8178,1827.9,1827.8,2.1176]
[1743650872366,0.00820277,1828.0,1827.9,0.87539]
[1743650872674,0.00820277,1828.0,1827.9,1.3724]
[1743650873266,0.88354277,1828.0,1827.9,1.3724]
[1743650874863,2.34174277,1828.0,1827.9,1.3724]
[1743650875770,0.88354277,1828.0,1827.9,1.3724]
[1743650876877,3.61720277,1828.0,1827.7,0.6916]
[1743650877178,0.87543,1827.8,1827.7,0.6916]
[1743650877474,0.87548,1827.7,1827.6,4.7192]
[1743650877670,0.87548,1827.7,1827.6,1.5114]
[1743650877671,5.51778,1827.7,1827.6,1.5114]
[1743650877872,0.87553,1827.6,1827.5,1.4037]
[1743650878073,3.77483,1827.6,1827.5,1.4037]
[1743650878268,0.87558,1827.5,1827.4,2.204]
[1743650878474,2.31138,1827.5,1827.4,2.204]
[1743650880169,0.87563,1827.4,1827.3,0.00820277]
[1743650880479,2.31143,1827.4,1827.3,0.00820277]
[1743650880683,3.608,1827.4,1827.3,0.88387277]
[1743650881879,3.608,1827.4,1827.3,0.00820277]
[1743650882079,3.608,1827.4,1827.3,0.88387277]
[1743650882383,3.608,1827.4,1827.3,2.31297277]
[1743650882876,4.6182,1827.5,1827.3,2.31297277]
[1743650883081,4.6182,1827.5,1827.4,1.4291]
[1743650883377,4.6182,1827.5,1827.4,2.1192]
[1743650883983,5.49378,1827.5,1827.4,2.1192]
[1743650884281,0.87563,1827.4,1827.3,0.00820277]
[1743650884484,2.34933,1827.4,1827.3,0.00820277]
[1743650885180,3.2078,1827.5,1827.3,0.00820277]
[1743650885376,3.2078,1827.5,1827.4,0.87563]